[Event "FIDE Womens Grand Prix-I 2022-23"]
[Site "Nur-Sultan"]
[Date "2022.09.22"]
[Round "5.6"]
[White "Zhu, Jiner"]
[Black "Abdumalik, Zhansaya"]
[Result "1-0"]
[ECO "B33"]
[WhiteElo "2464"]
[BlackElo "2503"]
[Annotator "TA"]
[PlyCount "71"]
[EventDate "2022.09.15"]
[EventType "tourn"]
[EventCountry "KAZ"]
[SourceTitle "playchess.com"]
[Source "ChessBase"]
[SourceQuality "1"]
[TimeControl "40/5400+30:1800+30"]

{[%evp 22,71,14,1,15,0,0,0,0,-11,-6,-56,-56,-65,8,2,16,5,22,0,0,-2,8,0,39,29,78,42,118,124,198,194,202,0,297,295,351,229,336,333,435,491,600,598,606,600,594,565,1054,906,1983,1966]} 1. e4 {[%emt 0:00:06]} c5 {[%emt 0:00:06]} 2. Nf3 {[%emt 0:00:10]} Nc6 {[%emt 0:00:04]} 3. d4 {[%emt 0:00:11]} cxd4 {[%emt 0:00:06]} 4. Nxd4 {[%emt 0:00:05]} Nf6 {[%emt 0:00:06]} 5. Nc3 {[%emt 0:00:15]} e5 {[%emt 0:00:04]} 6. Ndb5 {[%emt 0:00:17]} d6 {[%emt 0:00:07]} 7. Nd5 {[%emt 0:01:34]} Nxd5 {[%emt 0:03:11]} 8. exd5 {[%emt 0:00:07]} Nb8 {[%emt 0:01:25]} 9. a4 {[%emt 0:00:40]} a6 {[%emt 0:10:49]} 10. Na3 {[%emt 0:00:22]} Be7 {[%emt 0:00:39]} 11. Be2 {[%emt 0:03:06]} O-O {[%emt 0:02:10]} 12. O-O {[%emt 0:02:13]} f5 {[%emt 0:05:07] B33: Sicilian: Pelikan and Sveshnikov Variations.} 13. b4 {[%emt 0:14:44] Recently 13.Nc4 got a lot of attention.} f4 {[%emt 0:11:46] [#]} 14. Nc4 $146 {[%emt 0:07:33]} ({Predecessor:} 14. a5 Bf5 15. c4 Nd7 16. Nb1 Bf6 17. Bg4 Bxg4 18. Qxg4 e4 19. Ra3 Be5 20. Nd2 {0-1 (47) Abdusattorov,N (2688)-Gukesh,D (2684) Biel 2022}) 14... Bf5 {[%emt 0:03:32] The position is equal.} 15. f3 {[%emt 0:12:26]} Nd7 {[%emt 0:02:50]} 16. Bd3 {[%emt 0:02:35]} (16. a5 $11) 16... Rc8 $15 {[%emt 0:03:38]} 17. a5 {[%emt 0:01:02]} Qe8 {[%emt 0:11:47]} (17... Bxd3 $15 18. cxd3 Qe8) 18. Bxf5 $11 {[%emt 0:04:56]} Rxf5 {[%emt 0:00:02][%cal Bf8f5,Bf5h5,Bh5h6,Bh6g6][%mdl 32]} 19. Qd3 {[%emt 0:04:01]} Rh5 {[%emt 0:02:35]} 20. Bd2 {[%emt 0:05:41]} Rh6 {[%emt 0:01:58]} 21. Be1 {[%emt 0:01:46]} Qh5 {[%emt 0:03:03]} 22. h3 {[%emt 0:00:08]} Rg6 {[%emt 0:01:27][%cal Oc8c4]} 23. Nd2 {[%emt 0:05:02][%cal Bc4d2,Bd2e4,Be4d6,Bd6e4][%mdl 32]} Rf8 {[%emt 0:06:24]} (23... Qxh3 $2 24. Qxg6 $3 {[%mdl 512]} hxg6 25. gxh3 $18) (23... Nf6 $11) 24. Kh2 {[%emt 0:00:39]} Bh4 {[%emt 0:05:00]} ({Black should play} 24... Nf6 $14) 25. Ne4 $16 {[%emt 0:00:20]} Nf6 {[%emt 0:04:29]} (25... Rd8 $16) 26. Nxd6 $18 {[%emt 0:06:27] Hoping for Bxh4.} Qg5 {[%emt 0:04:10][%csl Gg6][%cal Rg5g2] [#]} 27. Rg1 {[%emt 0:01:18] Active counter play!} (27. g4 fxg3+ 28. Kg2 Nh5 $15) (27. Qd2 $1 $18) 27... Bg3+ {[%emt 0:07:39][%mdl 8192] [#]} (27... Bxe1 $11 28. Raxe1 Qg3+ 29. Kh1 Ng4 30. fxg4 f3) 28. Kh1 $1 {[%emt 0:00:23]} Rd8 {[%emt 0:03:16]} 29. Ne4 {[%emt 0:01:07]} Qh4 {[%emt 0:03:45]} (29... Nxe4 $2 30. Qxe4 (30. fxe4 Qh4 $11) 30... Rh6 31. c4) (29... Qf5 {is a better defense.} 30. Bxg3 fxg3) 30. c4 {[%emt 0:04:02][%cal Bc2c4,Bc4c5][%mdl 32]} ({Resist} 30. Bxg3 fxg3 31. Rge1 Nh5 $18) 30... Nh5 {[%emt 0:02:03]} (30... Nxe4 $2 31. Qxe4 Qf6 32. Rd1 $18) 31. c5 {[%emt 0:01:33] White is clearly winning.} ({Weaker is} 31. Bc3 Bf2 $18) 31... Bxe1 {[%emt 0:00:42]} 32. Raxe1 {[%emt 0:00:12]} Ng3+ {[%emt 0:00:14]} 33. Nxg3 {[%emt 0:00:35]} Rxg3 {[%emt 0:00:03]} 34. Re2 {[%emt 0:00:51]} Re8 {[%emt 0:01:58]} 35. d6 {[%emt 0:00:49][%cal Bd5d6,Bd6d7][%mdl 32]} e4 {[%emt 0:00:03]} 36. d7 {[%emt 0:00:18] Weighted Error Value: White=0.25 (precise) /Black=0.63} 1-0